{"text_format":"3","workbook":"xlsx","n_sheets":2,"sheets":["КАК ИСПОЛЬЗОВАТЬ ЭТУ КНИГУ","КЛАССНЫЙ ЖУРНАЛ"],"not_rendered":{"defined_names":5},"read":"whole","date_system":"1900"}

{"sheet":"КАК ИСПОЛЬЗОВАТЬ ЭТУ КНИГУ","index":0,"n_rows":10,"n_cols":2,"rows_kept":10}
[null,"ИНСТРУКЦИИ"]
[null,"Используйте лист \"Журнал\", чтобы вычислять оценки. За каждое задание начисляется определенное количество баллов. "]
[null,"Инструкции:   Обязательно сохраняйте резервные копии журнала."]
[null,"1. Укажите название учебного заведения, сведения о классе, имена учащихся и их идентификаторы (необязательно).   "]
[null,"2. Адаптируйте таблицу оценок и средних баллов к используемой вами системе оценивания."]
[null,"3. Укажите названия заданий или контрольных работ, начиная с ячейки G7, а также процент баллов за каждое из них (например, «Итоговый» или «50 %»). "]
[null,"4. Укажите оценки каждого учащегося за каждое задание или контрольную работу. Столбцы «Оценка», «Буква» и «Средний балл» вычисляются автоматически, но при необходимости их можно редактировать. Учитывая принцип вычисления оценок, средний и окончательный баллы остаются неполными, пока не будут поставлены все оценки."]
[null,"Если вам нужно изменить область, которая выводится на печать, используйте команду «Область печати» в меню «Разметка страницы»."]
[null,"Оценка, ее буквенное обозначение и средний балл недействительны, пока не будут выполнены 100 % контрольных работ и заданий. "]
[null,"Каждое новое задание или контрольная работа, а также соответствующий процент от общей оценки указываются в ячейках от G7 до W8."]

{"sheet":"КЛАССНЫЙ ЖУРНАЛ","index":1,"n_rows":20,"n_cols":23,"rows_kept":20,"merged":[[5,1,5,5],[6,1,6,3],[6,4,6,5],[7,1,8,3],[7,4,7,5],[8,4,8,5],[16,1,16,2],[17,1,17,2],[18,1,18,2],[19,1,19,2]]}
[null,"Средняя школа г. Красноярск"]
[]
[{"$nulls":6},"Оценка",{"v":0,"d":"0%"},{"v":0.6,"d":"60%"},{"v":0.63,"d":"63%"},{"v":0.67,"d":"67%"},{"v":0.7,"d":"70%"},{"v":0.73,"d":"73%"},{"v":0.77,"d":"77%"},{"v":0.8,"d":"80%"},{"v":0.83,"d":"83%"},{"v":0.87,"d":"87%"},{"v":0.9,"d":"90%"},{"v":0.93,"d":"93%"},{"v":0.97,"d":"97%"}]
[{"$nulls":6},"Буква","F","D-","D","D+","C-","C","C+","B-","Б","B+","A-","А","A+"]
[{"$nulls":6},"Средний балл",0,0.67,1,1.33,1.67,2,2.33,2.67,3,3.33,3.67,4,4]
[null,"Марта Артемьева"]
[null,"Всемирная история II",null,null,"Задание"]
[null,"Осенний семестр 2023 г.",null,null,"Процент (сумма должна составлять 100 %)"]
[{"$nulls":4},{"$f":"\"Общий процент: \"&SUM(G8:BZ8)*100&\"%\"","v":"Общий процент: 0%"}]
[null,"Имя учащегося","ИД учащегося","Оценка","Буква","Средний балл","Столбец6","Столбец7","Столбец8","Столбец9","Столбец10","Столбец11","Столбец12","Столбец13","Столбец14","Столбец15","Столбец16","Столбец17","Столбец18","Столбец19","Столбец20","Столбец21","Столбец22"]
[null,"Иван Воронков",654987,{"$f":"(IF(SUM(Оценки[[#This Row],[Столбец6]:[Столбец22]]),ROUND(SUMPRODUCT($G$8:$W$8,Оценки[[#This Row],[Столбец6]:[Столбец22]]),2),\"\"))","v":""},{"$f":"IF(Оценки[[#This Row],[Оценка]]<>\"\",HLOOKUP(Оценки[[#This Row],[Оценка]],Классный_журнал,2),\"\")","v":""},{"$f":"IF(Оценки[[#This Row],[Оценка]]<>\"\",HLOOKUP(Оценки[[#This Row],[Оценка]],Классный_журнал,3),\"\")","v":""}]
[null,"Кирилл Крюковин",134698,{"$f":"(IF(SUM(Оценки[[#This Row],[Столбец6]:[Столбец22]]),ROUND(SUMPRODUCT($G$8:$W$8,Оценки[[#This Row],[Столбец6]:[Столбец22]]),2),\"\"))","v":""},{"$f":"IF(Оценки[[#This Row],[Оценка]]<>\"\",HLOOKUP(Оценки[[#This Row],[Оценка]],Классный_журнал,2),\"\")","v":""},{"$f":"IF(Оценки[[#This Row],[Оценка]]<>\"\",HLOOKUP(Оценки[[#This Row],[Оценка]],Классный_журнал,3),\"\")","v":""}]
[null,"Леонид Авдеев",613467,{"$f":"(IF(SUM(Оценки[[#This Row],[Столбец6]:[Столбец22]]),ROUND(SUMPRODUCT($G$8:$W$8,Оценки[[#This Row],[Столбец6]:[Столбец22]]),2),\"\"))","v":""},{"$f":"IF(Оценки[[#This Row],[Оценка]]<>\"\",HLOOKUP(Оценки[[#This Row],[Оценка]],Классный_журнал,2),\"\")","v":""},{"$f":"IF(Оценки[[#This Row],[Оценка]]<>\"\",HLOOKUP(Оценки[[#This Row],[Оценка]],Классный_журнал,3),\"\")","v":""}]
[{"$nulls":3},{"$f":"(IF(SUM(Оценки[[#This Row],[Столбец6]:[Столбец22]]),ROUND(SUMPRODUCT($G$8:$W$8,Оценки[[#This Row],[Столбец6]:[Столбец22]]),2),\"\"))","v":""},{"$f":"IF(Оценки[[#This Row],[Оценка]]<>\"\",HLOOKUP(Оценки[[#This Row],[Оценка]],Классный_журнал,2),\"\")","v":""},{"$f":"IF(Оценки[[#This Row],[Оценка]]<>\"\",HLOOKUP(Оценки[[#This Row],[Оценка]],Классный_журнал,3),\"\")","v":""}]
[{"$nulls":3},{"$f":"(IF(SUM(Оценки[[#This Row],[Столбец6]:[Столбец22]]),ROUND(SUMPRODUCT($G$8:$W$8,Оценки[[#This Row],[Столбец6]:[Столбец22]]),2),\"\"))","v":""},{"$f":"IF(Оценки[[#This Row],[Оценка]]<>\"\",HLOOKUP(Оценки[[#This Row],[Оценка]],Классный_журнал,2),\"\")","v":""},{"$f":"IF(Оценки[[#This Row],[Оценка]]<>\"\",HLOOKUP(Оценки[[#This Row],[Оценка]],Классный_журнал,3),\"\")","v":""}]
[]
[null,"Сводка по классу",null,"Оценка","Буква","Средний балл","","","","","","","","","","",""]
[null," Средняя оценка",null,{"$f":"IFERROR(AVERAGE(Оценки[[#All],[Оценка]]),0)","v":{"v":0,"d":"0.0%"}},{"$f":"IFERROR(HLOOKUP(D18,Классный_журнал,2),\"\")","v":"F"},{"$f":"IFERROR(AVERAGE(Оценки[[#All],[Средний балл]]),0)","v":0},"","","","","","","","","","","","","","","","",""]
[null," Максимальная оценка",null,{"$f":"IFERROR(MAX(Оценки[[#All],[Оценка]]),0)","v":{"v":0,"d":"0.0%"}},{"$f":"IFERROR(HLOOKUP(D19,Классный_журнал,2),\"\")","v":"F"},{"$f":"IFERROR(MAX(Оценки[[#All],[Средний балл]]),0)","v":0},"","","","","","","","","","","","","","","","",""]
[null," Минимальная оценка",null,{"$f":"IFERROR(MIN(Оценки[[#All],[Оценка]]),0)","v":{"v":0,"d":"0.0%"}},{"$f":"IFERROR(HLOOKUP(D20,Классный_журнал,2),\"\")","v":"F"},{"$f":"IFERROR(MIN(Оценки[[#All],[Средний балл]]),0)","v":0},"","","","","","","","","","","","","","","","",""]